bitfinex/quotes_ETHUSD_20241225
["timestamp","ask_amount","ask_price","bid_price","bid_amount"]
[1735111166729,0.7611,3503.4,3502.7,2.85487]
[1735111166966,0.7611,3503.4,3502.8,0.9833187]
[1735111167140,0.7611,3503.4,3502.8,3.8381687]
[1735111167684,0.7611,3503.4,3502.9,2.85475]
[1735111168689,0.7611,3503.4,3502.8,2.45733383]
[1735111168844,3.61547,3503.4,3502.8,2.45733383]
[1735111169248,3.61547,3503.4,3502.6,1.18287556]
[1735111169788,0.7611,3503.4,3502.7,3.02854634]
[1735111170012,0.7611,3503.4,3502.7,3.0]
[1735111170488,0.7611,3503.4,3502.5,2.45788283]
[1735111170691,0.7611,3503.4,3502.5,11.27787283]
[1735111171093,2.85439,3503.4,3502.5,11.27787283]
[1735111171296,0.8193,3503.3,3502.5,12.46074839]
[1735111172567,0.8193,3503.3,3502.5,8.81999]
[1735111173469,0.8193,3503.3,3502.6,0.02854571]
[1735111173672,0.8193,3503.3,3502.7,2.85489]
[1735111174173,0.8193,3503.3,3502.7,37.85489]
[1735111174371,0.8193,3503.3,3502.7,2.85489]
[1735111174582,0.8193,3503.3,3502.8,3.83794829]
[1735111175912,0.8193,3503.3,3502.8,2.85485]
[1735111176114,0.8193,3503.3,3502.5,4.85070556]
[1735111176268,0.8193,3503.3,3502.6,2.85501]
[1735111177171,0.8193,3503.3,3502.7,3.83787094]
[1735111177404,0.8193,3503.3,3502.7,0.98294094]
[1735111178292,0.8193,3503.3,3502.8,0.98294094]
[1735111179313,0.8193,3503.7,3502.8,0.98294094]
[1735111180720,3.67343,3503.7,3502.8,0.98294094]
[1735111180883,4.040773,3503.7,3502.8,0.98294094]
[1735111181724,4.040773,3503.7,3502.7,2.85493]
[1735111182440,0.8151,3503.6,3502.7,2.85493]
[1735111182601,0.8151,3503.3,3502.4,1.18287556]
[1735111182936,0.8151,3503.1,3502.5,1.18287556]
[1735111184242,0.8151,3503.1,3502.4,5.85516]
[1735111184745,0.8151,3503.1,3502.5,2.8551]
[1735111185241,0.8151,3503.1,3502.5,3.83761196]
[1735111185644,0.8151,3503.1,3502.5,0.98251196]
[1735111186644,0.8151,3503.1,3502.3,2.85525]
[1735111189107,0.8151,3503.1,3502.0,3.0]
[1735111189108,2.85473,3503.0,3502.0,3.0]
[1735111189301,0.8151,3502.9,3501.9,1.18287556]
[1735111189500,2.85512,3502.5,3501.9,1.18287556]
[1735111189757,0.8151,3502.4,3501.9,1.18287556]
[1735111190453,0.8151,3502.4,3501.8,0.98250504]
[1735111191527,0.8151,3502.4,3501.5,2.85585]
[1735111192916,0.8151,3502.4,3501.2,8.81999]
[1735111192917,0.8151,3502.4,3501.2,10.00286556]
[1735111193162,0.8151,3502.3,3501.3,3.0]
[1735111193367,0.8151,3502.3,3501.3,5.85606]
[1735111193664,0.8151,3502.3,3501.3,3.0]
[1735111193836,0.8151,3502.3,3501.4,2.85592]
[1735111195170,0.8151,3502.3,3501.5,2.85587]
[1735111196788,0.8151,3502.3,3501.3,3.0]
[1735111197068,0.8151,3502.3,3501.7,2.85572]
[1735111200470,5.56998792,3503.2,3502.1,2.85538]
[1735111200471,0.7617,3503.0,3502.1,2.85538]
[1735111200652,1.69143284,3502.9,3501.8,0.02855094]
[1735111200965,0.7617,3502.9,3502.3,2.85524]
[1735111201646,0.7617,3502.9,3502.4,2.8551]
[1735111202045,0.7617,3502.9,3502.1,0.824]
[1735111202260,0.7617,3502.9,3502.3,2.85526]
[1735111204174,0.7617,3502.9,3502.1,2.85539]
[1735111204675,0.7617,3502.9,3502.1,4.03826556]
[1735111205695,0.7617,3502.9,3502.1,1.18287556]
[1735111205890,0.7617,3502.8,3502.2,0.98238069]
[1735111206093,0.7617,3502.6,3502.2,0.98238069]
[1735111207394,0.7617,3502.6,3501.8,3.63982859]
[1735111207595,0.7617,3502.8,3501.8,3.63982859]
[1735111207803,0.7617,3502.5,3501.8,3.63982859]
[1735111208018,0.7617,3502.2,3501.8,3.63982859]
[1735111208161,0.63323679,3502.2,3501.8,3.63982859]
[1735111208363,0.7617,3502.0,3501.8,3.63982859]
[1735111208781,0.7617,3502.0,3501.6,2.16525625]
[1735111210471,0.7617,3502.0,3501.4,2.85598]
[1735111210670,0.7617,3502.0,3501.2,5.02138625]
[1735111210866,0.7617,3502.0,3501.2,2.16525625]
[1735111212410,0.818,3501.8,3501.2,2.16525625]
[1735111212611,2.85582,3501.7,3501.2,2.16525625]
[1735111212803,0.818,3501.6,3501.1,3.63982859]
[1735111213914,0.818,3501.6,3501.2,0.02856066]
[1735111214227,2.80974007,3502.0,3501.4,2.85592]
[1735111214228,0.818,3501.9,3501.4,2.85592]
[1735111214417,0.818,3501.9,3501.2,2.85615]
[1735111215531,0.818,3501.9,3501.3,5.31301303]
[1735111215727,2.80974007,3502.0,3501.5,2.85591]
[1735111217233,0.818,3501.9,3501.3,1.18287556]
[1735111217726,2.85572,3501.8,3501.3,1.18287556]
[1735111217929,0.818,3501.6,3501.3,1.18287556]
[1735111218225,0.818,3501.5,3501.3,1.18287556]
[1735111218437,2.85592,3501.5,3500.9,1.18287556]
[1735111218732,0.818,3501.4,3500.9,1.18287556]
[1735111219758,0.818,3501.4,3500.7,2.85654]
[1735111220035,0.818,3501.9,3501.2,2.85614]
[1735111220629,0.818,3501.9,3501.4,2.85599]
[1735111224725,0.818,3501.9,3501.5,0.98272214]
[1735111225826,2.80974007,3502.0,3501.5,3.83863214]
[1735111227450,2.80974007,3502.0,3501.6,0.98272214]
[1735111228722,2.80974007,3502.0,3501.6,2.4574828]
[1735111230519,0.7887,3501.9,3501.6,2.4574828]
[1735111230719,0.7887,3501.9,3501.6,1.47476066]
[1735111231019,2.80974007,3502.0,3501.5,0.98272214]
[1735111231623,2.80974007,3502.0,3501.5,3.83862214]
[1735111232257,2.80974007,3502.0,3501.6,0.98272214]
[1735111234881,2.80974007,3502.0,3501.7,0.98272214]
[1735111235882,0.7887,3501.9,3501.7,0.98272214]
[1735111237046,0.7887,3501.9,3501.5,0.98272214]
[1735111238396,0.7887,3501.9,3501.4,0.98272214]
[1735111238894,0.7887,3501.9,3501.4,0.95272214]
[1735111239495,0.7887,3501.9,3501.4,1.47476066]
[1735111240093,1.14854401,3501.9,3501.4,1.47476066]
[1735111241197,0.7887,3501.8,3501.4,1.47476066]
[1735111241489,0.7887,3501.8,3501.3,2.65763622]
[1735111242927,0.7887,3501.8,3501.2,1.47476066]
[1735111243734,0.8273,3501.8,3501.2,1.47476066]
[1735111243905,3.68338,3501.3,3501.2,1.47476066]
[1735111245704,3.68338,3501.3,3500.3,1.18287556]
[1735111245935,0.8273,3501.0,3500.3,1.18287556]
[1735111246233,0.8273,3500.8,3500.3,1.18287556]
[1735111246734,0.8273,3501.4,3500.4,0.02856917]
[1735111246932,0.8273,3501.4,3500.7,2.85654]
[1735111248143,0.8273,3501.4,3500.8,1.47476066]
[1735111248348,0.8273,3501.4,3500.8,4.33117066]
[1735111248645,0.8273,3501.7,3501.2,2.85609]
[1735111248841,2.80974007,3502.0,3501.2,2.85609]
[1735111249040,3.63704007,3502.0,3501.2,2.85609]
[1735111250546,3.63704007,3502.0,3501.4,2.856]
[1735111250850,2.80974007,3502.0,3501.6,2.85583]
[1735111251011,2.80974007,3502.0,3501.6,2.85577]
[1735111251211,2.80974007,3502.0,3501.6,3.65337]
[1735111252145,2.80974007,3502.0,3501.7,1.47476066]
[1735111252312,2.80974007,3502.0,3501.7,4.33048066]
[1735111252515,2.80974007,3502.0,3501.9,2.85559]
[1735111254651,2.80974007,3502.0,3501.9,4.33035066]
[1735111255015,1.61837791,3502.0,3501.9,4.33035066]
[1735111255853,1.61837791,3502.0,3501.9,5.52097549]
[1735111256852,1.61837791,3502.0,3501.9,4.33035066]
[1735111259636,0.8273,3502.7,3501.9,1.47476066]
[1735111259857,0.8273,3502.7,3502.1,2.85537]
[1735111260372,0.8273,3502.7,3501.9,1.47476066]
[1735111260551,0.8273,3502.7,3502.2,2.85529]
[1735111261362,0.8273,3502.7,3502.5,2.85505]
[1735111261739,0.7966,3503.4,3502.6,2.85501]
[1735111261940,0.7966,3503.4,3502.2,2.85534]
[1735111261941,1.93865554,3503.4,3502.7,2.8549]
[1735111262249,0.7966,3503.4,3502.7,2.8549]
[1735111262469,0.7966,3503.4,3502.8,2.8548]
[1735111263796,0.7966,3503.4,3502.5,1.19061598]
[1735111263944,0.7966,3503.4,3502.9,2.85476]
[1735111264142,0.7966,3503.4,3502.6,2.85502]
[1735111264374,0.7966,3503.4,3502.5,1.19061598]
[1735111264375,0.7966,3503.4,3503.2,2.85452]
[1735111266357,0.7966,3504.0,3503.2,2.85452]
[1735111266553,0.37966,3503.9,3503.2,2.85452]
[1735111266739,0.7966,3504.0,3503.2,2.85452]
[1735111269947,0.7966,3504.0,3503.2,0.7803]
[1735111270143,0.7966,3504.4,3503.4,2.85437]
[1735111270342,0.7966,3504.4,3504.2,2.85368]
[1735111271994,0.8111,3505.1,3503.8,0.7998]
[1735111272291,1.52076606,3505.1,3504.3,2.85358]
[1735111272647,0.8111,3505.1,3504.3,2.85358]
[1735111272959,0.8111,3505.1,3504.0,2.85388]
[1735111273283,0.99180642,3506.4,3504.3,3.0]
[1735111273284,0.8111,3506.0,3504.3,3.0]
[1735111273447,0.8111,3505.2,3504.2,2.8537]
[1735111273643,0.8111,3505.0,3504.0,2.85384]
[1735111276400,0.8111,3504.9,3503.8,2.85403]
[1735111276602,2.85325,3504.8,3503.6,2.85419]
[1735111276804,0.366394,3505.1,3503.5,3.0]
[1735111276805,0.8111,3504.5,3503.5,3.0]
[1735111277006,0.366451,3504.4,3503.7,2.8541]
[1735111277212,0.8111,3504.5,3503.7,2.8541]
[1735111278480,2.71539792,3505.0,3504.4,5.56889792]
[1735111278481,0.8111,3505.0,3504.4,5.56889792]
[1735111279514,0.8111,3505.0,3504.4,2.71539792]
[1735111281512,0.8111,3505.0,3504.4,5.56893792]
[1735111281668,0.8111,3505.0,3504.4,2.71539792]
[1735111281871,0.8111,3505.0,3504.6,2.85336]
[1735111283010,0.8111,3505.0,3504.1,3.65902]
[1735111283011,0.7768,3505.7,3504.8,2.71539792]
[1735111283212,0.662917,3505.6,3504.8,2.71539792]
[1735111283508,0.7768,3505.7,3505.2,5.56825792]
[1735111284409,0.7768,3505.7,3505.2,2.71539792]
[1735111287874,0.8066,3506.0,3505.2,2.71539792]
[1735111288592,0.8066,3506.0,3505.2,5.56827792]
[1735111288788,0.1738513,3506.4,3505.6,2.71539792]
[1735111289076,0.1738513,3506.4,3506.0,2.71539792]
[1735111289885,0.1738513,3506.4,3505.7,2.85242]
[1735111292137,0.1738513,3506.4,3505.8,0.7588]
[1735111292838,0.1738513,3506.4,3505.8,3.61121]
[1735111298922,0.1738513,3506.4,3505.8,0.7588]
[1735111299123,0.1738513,3506.4,3505.5,0.7588]
[1735111299327,0.8066,3506.3,3505.5,0.7588]
[1735111300444,0.8066,3506.3,3505.5,3.61143]
[1735111301838,0.8066,3506.3,3505.6,5.56794792]
[1735111303202,0.1738513,3506.4,3506.1,11.53538792]
[1735111303408,0.1738513,3506.4,3506.2,3.64062]
[1735111305303,0.8084,3507.0,3506.2,3.64062]
[1735111306146,0.8084,3507.0,3506.2,0.7886]
[1735111306467,2.85167,3506.8,3506.1,8.81999]
[1735111307132,3.65986,3507.0,3506.1,8.81999]
[1735111307529,0.8084,3507.0,3506.1,8.81999]
[1735111307742,0.8084,3507.0,3506.1,11.53538792]
[1735111307949,0.8084,3507.0,3506.2,2.85208]
[1735111308765,0.8084,3507.0,3506.3,0.7886]
[1735111310463,0.8084,3507.0,3505.8,8.81999]
[1735111311324,3.65986,3507.0,3505.9,2.85232]
[1735111312359,0.8084,3507.0,3505.9,0.7886]
[1735111312525,0.8084,3507.0,3506.1,2.71539792]
[1735111313062,0.8084,3507.0,3506.1,5.56753792]
[1735111317184,0.8084,3507.0,3506.2,2.85205]
[1735111317839,1.0084,3507.0,3506.2,2.85205]
[1735111324890,2.85154,3506.9,3506.0,8.81999]
[1735111325471,0.8016,3506.8,3506.0,8.81999]
[1735111325986,2.85186,3506.5,3506.0,8.81999]
[1735111326287,0.8016,3506.3,3505.6,1.18623547]
[1735111326481,0.8016,3505.8,3505.6,1.18623547]
[1735111327742,0.8016,3505.8,3505.1,2.71539792]
[1735111328320,0.8016,3505.8,3505.1,5.56837792]
[1735111328646,0.8016,3506.3,3505.2,3.62627]
[1735111329242,0.8016,3506.3,3505.3,2.88133441]
[1735111330098,3.65361,3506.3,3505.3,2.88133441]
[1735111330303,3.65361,3506.3,3505.3,2.85281]
[1735111330521,3.65361,3506.3,3505.4,3.67287864]
[1735111330744,3.65361,3506.3,3505.4,3.64435422]
[1735111331647,3.65361,3506.3,3505.5,0.9832475]
[1735111331985,0.8016,3506.3,3505.6,5.56796792]
[1735111332355,0.8016,3506.3,3505.6,2.71539792]
[1735111332508,0.8016,3506.3,3505.6,5.56793792]
[1735111333190,0.8016,3506.3,3505.7,2.45811875]
[1735111333493,0.8016,3506.3,3505.8,0.7734]
[1735111334860,1.39185074,3507.0,3506.0,2.71539792]
[1735111335013,0.2,3507.0,3506.7,5.56704792]
[1735111335349,0.2,3507.0,3506.7,6.34044792]
[1735111336490,0.2,3507.0,3506.8,2.45811875]
[1735111337926,0.2,3507.0,3506.9,0.9832475]
[1735111339132,0.2,3507.0,3506.8,2.85159]
[1735111341429,0.2,3507.0,3506.9,0.98247743]
[1735111344235,0.2,3507.0,3506.8,2.85159]
[1735111349010,0.2,3507.0,3506.9,2.85152]
[1735111350713,0.2,3507.0,3506.9,3.83360509]
[1735111354798,0.2,3507.0,3506.9,2.85152]
[1735111355091,0.2,3507.0,3506.7,2.85167]
[1735111355607,0.8017,3506.9,3506.6,1.18623547]
[1735111356500,0.8017,3506.9,3506.4,10.00622547]
[1735111357006,0.8017,3506.9,3506.4,1.18623547]
[1735111357394,0.8017,3506.9,3506.3,2.85193]
[1735111357796,0.8017,3506.9,3506.2,1.18623547]
[1735111357981,0.8017,3506.9,3506.3,2.85199]
[1735111358499,0.8017,3506.9,3506.2,1.18623547]
[1735111358900,0.8017,3506.9,3506.2,2.85208]
[1735111359102,0.8017,3506.9,3506.2,0.02851968]
[1735111359271,0.8017,3506.9,3506.4,2.85189]
[1735111359617,0.2,3507.0,3506.5,2.85184]
[1735111360482,0.2,3507.0,3506.3,2.85198]
[1735111360688,0.2,3507.0,3506.2,1.18623547]
[1735111360885,0.585297,3507.0,3506.2,1.18623547]
[1735111361211,0.8017,3506.9,3506.2,1.18623547]
[1735111361413,3.65157,3506.6,3506.2,1.18623547]
[1735111361577,0.7998,3506.5,3506.2,1.18623547]
[1735111361769,0.7998,3506.5,3506.2,2.45405368]
[1735111361971,0.7998,3506.3,3506.2,2.45405368]
[1735111363024,0.7998,3506.3,3505.7,3.83409147]
[1735111364102,0.7998,3506.3,3505.8,2.4543669]
[1735111364648,0.7998,3506.3,3505.8,3.2325669]
[1735111365328,0.7998,3506.3,3505.8,6.0849769]
[1735111365529,0.7998,3506.3,3506.0,2.8522]
[1735111365721,0.7998,3506.8,3506.0,2.8522]
[1735111365899,1.484917,3506.8,3506.0,2.8522]
[1735111366230,0.7998,3506.8,3506.0,2.8522]
[1735111367132,2.85168,3506.7,3505.8,1.18623547]
[1735111367303,2.85192,3506.4,3505.8,1.18623547]
[1735111367503,0.7998,3506.6,3505.8,1.18623547]
[1735111367705,0.7998,3506.0,3505.8,1.18623547]
[1735111368233,3.0,3506.5,3505.8,1.18623547]
[1735111368448,0.7998,3506.4,3505.8,1.18623547]
[1735111369078,0.7998,3506.4,3505.7,2.85249]
[1735111369837,0.7998,3506.4,3505.5,2.85263]
[1735111370362,0.7998,3506.4,3505.8,2.8524]
[1735111370511,0.2,3506.9,3505.7,1.3282]
[1735111370512,0.9998,3506.9,3505.7,1.3282]
[1735111370854,0.9998,3506.9,3506.2,2.85208]
[1735111374353,0.9998,3506.9,3506.0,0.7782]
[1735111374354,0.9998,3506.9,3506.3,2.852]
[1735111375685,0.9998,3506.9,3506.0,3.63038]
[1735111375866,1.684909,3506.9,3505.9,1.18623547]
[1735111376067,0.7998,3506.7,3505.9,1.18623547]
[1735111376271,0.7998,3506.7,3506.0,1.18623547]
[1735111377360,0.7998,3506.7,3505.9,3.83462574]
[1735111378378,0.7998,3506.7,3506.0,2.85225]
[1735111378630,0.2,3506.9,3506.3,2.852]
[1735111378631,0.99276742,3506.9,3506.3,2.852]
[1735111378822,0.99276742,3506.9,3506.1,3.64196]
[1735111379121,0.99276742,3506.9,3506.0,2.45569443]
[1735111379286,1.67718616,3506.9,3506.0,2.45569443]
[1735111379628,0.7962,3506.8,3506.2,0.98233574]
[1735111380231,0.8235,3506.3,3506.2,0.98233574]
[1735111381005,0.8235,3506.7,3505.9,0.7716]
[1735111381225,0.8235,3506.7,3505.8,4.03861547]
[1735111381395,0.8235,3506.7,3505.8,1.18623547]
[1735111381396,3.0,3506.6,3505.8,1.18623547]
[1735111381735,0.8235,3506.2,3505.8,1.18623547]
[1735111381989,2.8523,3506.0,3505.8,1.18623547]
[1735111382160,0.8235,3505.9,3505.8,0.98233574]
[1735111383259,0.8235,3505.9,3505.3,0.98233574]
[1735111384541,0.8235,3505.9,3505.2,6.49508949]
[1735111384733,0.8235,3505.9,3505.2,3.64221949]
[1735111385047,0.8235,3506.4,3505.5,3.62425]
[1735111385248,0.8235,3506.4,3505.7,2.85249]
[1735111385548,0.8235,3506.4,3505.9,2.85232]
[1735111385962,0.8235,3506.7,3506.3,2.852]
[1735111387077,0.19656742,3506.9,3506.3,2.852]
[1735111388507,0.19656742,3506.9,3506.1,1.18623547]
[1735111388847,0.19656742,3506.9,3506.1,4.03839547]
[1735111389198,0.8235,3507.0,3506.2,2.85205]
[1735111389876,0.8235,3507.0,3506.2,0.98113352]
[1735111391881,0.367478,3507.0,3506.2,0.98113352]
[1735111392166,0.7981,3506.9,3506.2,0.98113352]
[1735111392375,3.6501,3506.3,3506.2,2.4528338]
[1735111392750,6.6501,3506.3,3506.2,2.4528338]
[1735111394143,3.0,3506.1,3505.0,3.83418352]
[1735111394381,3.0,3506.1,3505.1,2.85298]
[1735111394735,2.85218,3506.1,3505.1,3.67238]
[1735111395578,0.7981,3506.2,3505.1,0.8194]
[1735111395736,0.7981,3505.9,3505.1,0.8194]
[1735111395937,0.7981,3505.9,3504.9,4.03935547]
[1735111396838,3.65043,3505.9,3504.9,4.03935547]
[1735111397038,3.65043,3505.9,3505.0,1.47290743]
[1735111397266,0.365043,3505.9,3505.0,1.47290743]
[1735111397476,0.7981,3505.6,3505.0,1.47290743]
[1735111397867,0.7981,3505.6,3505.0,2.45490454]
[1735111399509,0.7981,3505.6,3504.8,0.8194]
[1735111400403,2.85266,3505.5,3504.9,0.98190134]
[1735111401610,2.85266,3505.5,3504.6,3.64114717]
[1735111402911,0.7981,3505.6,3504.6,2.4549117]
[1735111403107,2.85274,3505.4,3504.6,2.4549117]
[1735111403296,0.7981,3505.6,3504.6,2.4549117]
[1735111403500,2.85275,3505.4,3504.6,2.4549117]
[1735111404403,0.8182,3505.3,3504.6,2.4549117]
[1735111404828,0.8182,3505.3,3504.6,6.1130617]
[1735111405032,0.8182,3505.6,3504.6,6.1130617]
[1735111405542,0.8182,3505.6,3504.6,3.65815]
[1735111405940,0.8182,3505.6,3504.6,0.8048]
[1735111406118,2.85269,3505.5,3504.6,0.8048]
[1735111406328,3.219779,3505.5,3504.6,0.8048]
[1735111406504,3.219779,3505.5,3504.7,0.98190134]
[1735111407648,3.219779,3505.5,3504.6,0.8048]
[1735111408046,0.8223,3505.2,3504.4,0.7969]
[1735111408245,2.85311,3505.0,3504.3,1.18623547]
[1735111408548,2.85328,3504.8,3504.3,1.18623547]
[1735111408904,2.85333,3504.7,3504.3,1.18623547]
[1735111409111,2.85353,3504.5,3504.3,1.18623547]
[1735111409313,0.8223,3504.4,3504.3,1.18623547]
[1735111410720,0.8223,3504.4,3503.7,0.7969]
[1735111415142,2.85328,3504.8,3503.7,0.7969]
[1735111415349,3.67545,3504.9,3503.8,2.85397]
[1735111415674,0.8223,3504.8,3503.7,0.7969]
[1735111416473,0.8223,3504.4,3503.7,0.7969]
[1735111416668,0.8223,3504.4,3503.4,0.7969]
[1735111417259,3.67589,3504.4,3503.4,0.7969]
[1735111418054,0.8223,3504.4,3503.4,0.7969]
[1735111418374,0.8223,3504.4,3503.4,3.65119]
[1735111418575,3.67588,3504.4,3503.4,3.65119]
[1735111419379,4.043468,3504.4,3503.4,3.65119]
[1735111419543,1.189888,3504.4,3503.4,0.7969]
[1735111419740,2.85387,3504.1,3503.0,0.7969]
[1735111421084,0.8223,3504.0,3503.0,0.7969]
[1735111421759,3.67618,3504.0,3503.0,0.7969]
[1735111422671,2.85398,3503.9,3503.0,0.7969]
[1735111423391,2.85331,3504.7,3503.2,0.7994]
[1735111423392,2.85375,3504.2,3503.2,0.7994]
[1735111424278,3.16188935,3504.2,3503.2,0.7994]
[1735111424882,2.85389,3504.0,3503.2,0.7994]
[1735111425048,0.8186,3503.9,3503.2,0.7994]
[1735111425450,2.85437,3503.4,3502.9,0.7994]
[1735111425774,0.285437,3503.3,3502.6,0.7994]
[1735111425969,3.139897,3503.3,3502.6,0.7994]
[1735111426289,3.139897,3503.3,3502.3,1.18623547]
[1735111426290,0.285437,3503.3,3502.3,1.18623547]
[1735111426768,2.85461,3503.1,3502.2,0.7994]
[1735111427801,0.8186,3502.9,3502.2,0.7994]
[1735111428000,0.8186,3502.9,3501.9,0.7994]
[1735111428504,3.0,3502.7,3501.9,0.7994]
[1735111428669,3.522435,3502.6,3501.9,0.7994]
[1735111428873,2.8551,3502.5,3501.9,0.7994]
[1735111429266,0.667345,3502.6,3501.4,1.18623547]
[1735111429471,3.6738,3502.4,3501.5,0.7994]
[1735111430458,0.8186,3502.4,3501.5,0.7994]
[1735111431291,3.67379,3502.4,3501.5,0.7994]
[1735111432301,0.8186,3502.4,3501.5,0.7994]
[1735111432502,3.56804665,3502.9,3501.8,0.7994]
[1735111432503,0.8186,3502.8,3501.8,0.7994]
[1735111432799,0.72414267,3502.7,3501.8,0.7994]
[1735111433177,0.8186,3502.8,3501.8,0.7994]
[1735111434100,0.8186,3502.8,3502.2,0.2496]
[1735111434700,3.0,3502.7,3502.2,0.2496]
[1735111435821,2.85494,3502.7,3502.2,0.2496]
[1735111437265,3.67386,3502.3,3502.2,0.2496]
[1735111437453,4.59829379,3502.3,3502.2,0.2496]
[1735111439630,7.59829379,3502.3,3502.2,0.2496]
[1735111439789,8.14829379,3502.3,3502.2,0.2496]
[1735111440626,8.72458008,3502.3,3502.2,0.2496]
[1735111441614,8.17458008,3502.3,3502.2,0.2496]
[1735111447431,8.72458008,3502.3,3502.2,0.2496]
[1735111447631,3.55,3502.2,3500.5,0.7994]
[1735111447844,2.85594,3501.5,3500.5,0.7994]
[1735111448681,2.85582,3501.7,3500.5,2.85672]
[1735111448855,3.0,3501.9,3500.6,0.7994]
[1735111449057,2.85584,3501.6,3500.6,0.7994]
[1735111449240,3.141424,3501.6,3500.6,0.7994]
[1735111449999,0.285584,3501.6,3500.6,0.7994]
[1735111450202,0.285584,3501.6,3500.7,0.7994]
[1735111450451,0.8186,3502.1,3500.7,0.7994]
[1735111450746,3.0,3501.8,3500.9,0.7994]
[1735111451082,5.85571,3501.8,3500.9,0.7994]
[1735111454663,2.8556,3501.9,3500.9,0.7994]
[1735111455001,3.0,3501.8,3500.9,0.7994]
[1735111455975,0.8186,3502.1,3500.9,0.7994]
[1735111456098,2.85577,3501.7,3500.9,0.7994]
[1735111456457,2.85593,3501.5,3500.9,0.7994]
[1735111458181,0.55388841,3502.0,3500.0,3.61731]
[1735111458182,2.85625,3501.1,3500.0,3.61731]
[1735111458382,2.85625,3501.1,3500.2,0.7602]
[1735111458555,2.85632,3501.0,3500.2,0.7602]
[1735111458757,2.8565,3500.8,3500.2,0.7602]
[1735111459060,2.85666,3500.6,3500.2,0.7602]
[1735111459260,2.85651,3500.8,3500.2,0.7602]
[1735111459733,0.7838,3500.7,3499.7,1.94643547]
[1735111459933,1.147831,3500.7,3499.7,0.7602]
[1735111461841,1.147831,3500.7,3499.7,3.61757]
[1735111464554,0.364031,3500.7,3499.7,2.85737]
[1735111464739,0.364031,3500.7,3499.9,0.7602]
[1735111464936,3.64013,3501.0,3499.9,0.7602]
[1735111465581,0.7838,3501.0,3499.9,0.7602]
[1735111465843,2.8564,3500.9,3499.9,0.7602]
[1735111466087,0.7838,3501.0,3499.9,0.7602]
[1735111466283,2.85684,3500.4,3499.9,0.7602]
[1735111466462,0.285684,3500.3,3499.9,0.7602]
[1735111467183,2.85705,3500.2,3499.9,0.7602]
[1735111468728,2.85705,3500.2,3499.3,0.7565]
[1735111470245,0.7898,3500.4,3499.3,0.7565]
[1735111470246,3.50519792,3500.4,3499.3,0.7565]
[1735111470463,2.85712,3500.1,3499.3,0.7565]
[1735111471162,3.50519792,3500.4,3499.3,0.7565]
[1735111471347,3.26507149,3500.3,3499.3,0.7565]
[1735111471802,3.26507149,3500.3,3499.4,0.7565]
[1735111472004,0.40812149,3500.3,3499.4,0.7565]
[1735111472820,3.0,3500.6,3499.5,0.7565]
[1735111473035,3.0,3500.8,3499.7,0.7565]
[1735111473742,2.8565,3500.8,3499.7,0.7565]
[1735111474912,2.71539792,3500.8,3499.7,0.7565]
[1735111475127,2.85696,3500.3,3499.7,0.7565]
[1735111475292,2.85708,3500.1,3499.7,0.7565]
[1735111475713,0.285696,3500.2,3499.7,0.7565]
[1735111475928,2.85689,3500.4,3499.7,0.7565]
[1735111478450,3.7898,3500.7,3499.7,0.7565]
[1735111478767,2.85668,3500.6,3499.7,0.7565]
[1735111480037,2.85673,3500.5,3499.7,0.7565]
[1735111482751,3.7898,3500.7,3499.7,0.7565]
[1735111483058,2.85681,3500.4,3499.7,0.7565]
[1735111485618,0.65051979,3500.6,3499.7,0.7565]
[1735111485820,3.50718979,3500.6,3499.7,0.7565]
[1735111488265,3.50718979,3500.6,3499.7,0.7065]
[1735111490704,3.50718979,3500.6,3499.7,0.6565]
[1735111490904,0.65071898,3500.5,3499.7,0.6565]
[1735111491152,2.85674,3500.5,3499.7,0.6565]
[1735111493040,2.75674,3500.5,3499.7,0.6565]
[1735111494066,2.85692,3500.3,3499.7,0.6565]
[1735111494562,2.85707,3500.1,3499.7,0.6565]
[1735111494771,0.7948,3500.5,3499.7,0.6565]
[1735111494908,2.85695,3500.3,3499.7,0.6565]
[1735111495107,0.365175,3500.2,3499.7,0.6565]
[1735111495358,3.222205,3500.2,3499.7,0.6565]
[1735111496855,2.85708,3500.1,3499.7,0.6565]
[1735111497570,4.000942,3500.1,3499.7,0.6565]
[1735111500744,2.85716,3500.0,3499.7,0.6565]
[1735111500945,3.2937797,3500.0,3499.7,0.6565]
[1735111501146,3.1937797,3500.0,3499.7,0.6565]
[1735111502158,0.4366197,3500.0,3499.7,0.6565]
[1735111504744,0.7716,3499.9,3499.5,1.48207685]
[1735111505059,3.09250817,3499.8,3499.5,1.48207685]
[1735111505375,3.09250817,3499.8,3499.6,1.48207685]
[1735111505555,2.85738,3499.7,3499.6,1.48207685]
[1735111505881,6.62898,3499.7,3499.6,1.48207685]
[1735111506042,7.17898,3499.7,3499.6,1.48207685]
[1735111506242,8.59117168,3499.7,3499.6,0.05334685]
[1735111506689,8.59117168,3499.7,3499.6,6.85e-06]
[1735111507049,2.85787,3499.1,3499.0,1.18623547]
[1735111507390,3.62947,3499.1,3499.0,1.18623547]
[1735111508178,9.34486792,3499.1,3499.0,1.18623547]
[1735111508375,11.11512371,3499.1,3499.0,1.18623547]
[1735111508564,11.11512371,3499.1,3498.3,0.7766]
[1735111508888,2.85824,3498.7,3498.3,0.7766]
[1735111512818,3.0,3498.5,3497.5,1.18623547]
[1735111513118,0.8156,3498.1,3497.5,1.18623547]
[1735111513279,2.85886,3497.9,3497.5,1.18623547]
[1735111513670,2.85897,3497.8,3497.5,1.18623547]
[1735111513876,0.8156,3498.1,3497.5,1.18623547]
[1735111514076,2.8589,3497.9,3497.5,1.18623547]
[1735111514376,0.36745,3497.8,3497.5,1.18623547]
[1735111514931,0.36745,3497.8,3497.0,0.7562]
[1735111515436,0.8156,3498.1,3497.0,0.7562]